Cogmind - Beta 12 @@@ ROGUE MODE // 2024.02.24 @ 01:13:12 Player: ToasterKoishi Result: Destroyed by H-61 Shepherd with Heavy Assault Cannon Performance ------------- Evolutions (2) 1000 Regions Visited (5) 1000 Robots Destroyed (53) 265 Value Destroyed (1617) 1617 Prototype IDs (0) 0 Alien Tech Used (0) 0 Bonus (0) 0 TOTAL SCORE: 3882 Bonus ------- None Cogmind --------- Core Integrity 0/550 Matter 100/300 Energy 98/100 System Corruption 3% Temperature Cool (0) Movement Core (50) Location -8/Materials Parts ------- > --- POWER (1) -------- (None) > --- PROPULSION (3) --- (None) > --- UTILITY (5) ------ (None) > --- WEAPON (2) ------- Light Cannon > --- INVENTORY (5) ---- Medium Storage Unit Advanced Visual Processing Unit Improved Signal Interpreter Hacking Suite Maul Peak State ------------ > --- POWER ------------ Reinforced Ion Engine > --- PROPULSION ------- Light Treads Wheel Compact Wheel > --- UTILITY ---------- Improved Heat Sink Humpback Heavy Armor Plating > --- WEAPON ----------- High-powered Shotgun High-powered Shotgun > --- INVENTORY -------- Light Nuclear Core Light Nuclear Core Light Treads Light Treads Flight Unit Flight Unit Flight Unit Medium Storage Unit Compact Matter Pod Visual Processing Unit Visual Processing Unit Advanced Visual Processing Unit Improved Sensor Array Improved Sensor Array Improved Signal Interpreter Improved Signal Interpreter Improved Terrain Scanner Improved Terrain Scanner Terrain Scan Processor Terrain Scan Processor Reaction Control System Light Armor Plating Light Armor Plating Hacking Suite Hacking Suite Hacking Suite System Shield Light Assault Rifle Light Assault Rifle Light Assault Rifle Heavy Assault Rifle Light Cannon Rocket Launcher Maul Maul [Rating: 29] Favorites ----------- Power Ion Engine Engine Ion Engine Power Core Light Nuclear Core Propulsion Compact Wheel Treads Light Treads Wheel Compact Wheel Utility Humpback Device Improved Heat Sink Storage Humpback Processor Improved Signal Interpreter Protection Light Armor Plating Weapon High-powered Shotgun Energy Gun EM Pulse Gun Ballistic Gun High-powered Shotgun Ballistic Cannon Light Cannon Launcher Grenade Launcher Build | -11 -10 -10 -10 -9 -8 ------- Run | Jun Mat Min Exi Min Mat Slots Evolved 4 | . . . . . 4 Power . | . . . . . . Propulsion 1 | . . . . . 1 Utility 3 | . . . . . 3 Weapon . | . . . . . . Parts Attached 56 | 8 6 2 2 . 38 Power 7 | 1 1 1 . . 4 Engine 6 | 1 1 1 . . 3 Core 1 | . . . . . 1 Reactor . | . . . . . . Propulsion 11 | 2 . 1 . . 8 Treads 6 | 1 . 1 . . 4 Leg . | . . . . . . Wheel 5 | 1 . . . . 4 Hover . | . . . . . . Flight . | . . . . . . Utility 19 | 2 2 . 2 . 13 Device 5 | 1 . . . . 4 Storage 5 | 1 1 . 2 . 1 Processor 1 | . . . . . 1 Hackware . | . . . . . . Protection 8 | . 1 . . . 7 Artifact . | . . . . . . Weapon 19 | 3 3 . . . 13 Energy Gun 3 | 2 . . . . 1 Energy Cannon . | . . . . . . Ballistic Gun 10 | 1 2 . . . 7 Ballistic Cannon 3 | . 1 . . . 2 Launcher 3 | . . . . . 3 Special Weapon . | . . . . . . Impact Weapon . | . . . . . . Slashing Weapon . | . . . . . . Piercing Weapon . | . . . . . . Special Melee Weapon . | . . . . . . Unidentified Prototypes . | . . . . . . Parts Lost 33 | . . . . . 33 Power 3 | . . . . . 3 Propulsion 9 | . . . . . 9 Utility 13 | . . . . . 13 Weapon 8 | . . . . . 8 Highest Loss Streak 23 | . . . . . 23 To Critical Strikes . | . . . . . . Average Slot Usage (%) 88 | . 99 100 94 85 83 Engine 9 | . 14 14 14 14 6 Core 1 | . . . . . 2 Treads 11 | . 14 14 14 14 10 Wheel 15 | . 14 14 14 14 16 Device 6 | . 10 . . . 7 Storage 10 | . 14 14 13 14 8 Protection 10 | . 3 14 8 . 13 Ballistic Gun 16 | . 21 14 14 14 16 Ballistic Cannon 4 | . 2 14 14 14 . Naked Turns . | . . . . . . Heaviest Build 232 | 13 34 36 209 209 232 Greatest Support 26 | 16 20 16 16 16 26 Greatest Overweight (x) 20 | . 2 2 13 13 20 Average Overweight (x) 5 | . 1 2 4 13 8 Largest Inventory Capacity 35 | 8 15 15 35 35 35 Average Capacity 27 | 7 14 15 22 35 34 Most Carried 35 | 6 15 15 19 21 35 Average Carried 21 | 3 12 14 15 19 26 Final Capacity 35 | 8 15 15 35 35 5 Final Carried 21 | 6 15 15 19 21 5 Class Distribution -------------------- 66% | Hauler-Mutant 33% | Mutant Dominant Class ---------------- Mutant | -10/Materials Mutant | -10/Mines Mutant | -10/Exiles Hauler-Mutant | -9/Mines Hauler-Mutant | -8/Materials Resources | -11 -10 -10 -10 -9 -8 ----------- Run | Jun Mat Min Exi Min Mat Matter Collected 1503 | 257 184 . 63 . 999 Remotely . | . . . . . . Salvage Created 1585 | 41 235 37 . . 1272 Parts 117 | 7 27 . . . 83 Haulers Intercepted . | . . . . . . Recyclers Shooed 1 | . . . . . 1 Parts Field Recycled . | . . . . . . Retrieved Matter . | . . . . . . Parts Self-Destructed . | . . . . . . Prevented . | . . . . . . Kills | -11 -10 -10 -10 -9 -8 ------- Run | Jun Mat Min Exi Min Mat Combat Hostiles Destroyed 42 | . 10 1 . . 31 Guns 37 | . 9 1 . . 27 Cannons 3 | . 1 . . . 2 AOE 2 | . . . . . 2 Classes Destroyed 10 | 1 4 . . . 5 Worker 3 | . 1 . . . 2 Builder 1 | . . . . . 1 Tunneler 2 | 2 . . . . . Watcher 5 | . 2 . . . 3 Swarmer 13 | . 9 . . . 4 Grunt 19 | . 1 1 . . 17 Brawler 2 | . . . . . 2 Duelist 1 | . . . . . 1 Sentry 5 | . . . . . 5 Specialist 2 | . . . . . 2 Best Kill Streak 6 | 2 4 1 . . 6 Combat Bots Only 5 | . 4 1 . . 5 Max Kills in Single Turn 3 | 1 2 1 . . 3 Gunslinging 1 | . 1 . . . . Exploded 1 | . . . . . 1 Melee . | . . . . . . Uniques/NPCs Destroyed . | . . . . . . Combat | -11 -10 -10 -10 -9 -8 -------- Run | Jun Mat Min Exi Min Mat Damage Taken 4135 | . 350 45 . . 3740 Core 675 | . 80 15 . . 580 Absorbed by Shields . | . . . . . . Core Remaining (%) 81 | 100 . . . 62 . Volleys Fired 168 | 2 27 2 . . 137 Largest 2 | 2 2 2 . . 2 Hottest 98 | 60 60 55 . . 98 Shots Fired 328 | 4 54 4 . . 266 Gun 294 | 4 46 2 . . 242 Cannon 31 | . 8 2 . . 21 Launcher 3 | . . . . . 3 Special . | . . . . . . Kinetic 304 | 2 46 4 . . 252 Thermal 11 | . . . . . 11 Explosive 3 | . . . . . 3 Electromagnetic 10 | 2 8 . . . . Robot Hit Streak 20 | 1 7 2 . . 20 Robot Miss Streak 5 | 1 5 1 . . 5 Penetration Max . | . . . . . . Secondary Targets 5 | . 2 . . . 3 Max Gunslinging Chain 1 | . 1 . . . 1 Shots Hit Robots 235 | 2 29 2 . . 202 Core Hits 108 | 2 17 1 . . 88 Critical Kills 2 | . 1 . . . 1 Critical Parts Destroyed . | . . . . . . Critical Strikes 2 | . 1 . . . 1 Destroy 2 | . 1 . . . 1 Melee Attacks . | . . . . . . Impact . | . . . . . . Slashing . | . . . . . . Piercing . | . . . . . . Sneak Attacks . | . . . . . . Combat Hostiles . | . . . . . . Follow-up Attacks . | . . . . . . Damage Inflicted 3741 | 25 333 27 . . 3356 Guns 2943 | 25 295 9 . . 2614 Cannons 322 | . 38 18 . . 266 Explosions 476 | . . . . . 476 Melee . | . . . . . . Ramming . | . . . . . . Kinetic 3032 | 13 277 27 . . 2715 Thermal 165 | . . . . . 165 Explosive 476 | . . . . . 476 Electromagnetic 68 | 12 56 . . . . Impact . | . . . . . . Slashing . | . . . . . . Piercing . | . . . . . . Highest Corruption 3 | . . . . . 3 Average Corruption 1 | . . . . . 1 Corruption Purged . | . . . . . . Corruption Blocked . | . . . . . . Effects 23 | . . . . . 23 Message Errors 3 | . . . . . 3 Matter Fused 5 | . . . . . 5 Heat Flow Errors 4 | . . . . . 4 Parts Fused 1 | . . . . . 1 Data Loss (minor) 8 | . . . . . 8 Misfires 1 | . . . . . 1 Weapon Failures 1 | . . . . . 1 Overload Shots . | . . . . . . Overflow Damage . | . . . . . . Projectiles . | . . . . . . Explosions . | . . . . . . Melee . | . . . . . . Knockbacks 7 | . 1 . . . 6 Impact . | . . . . . . Kinetic 7 | . 1 . . . 6 Secondary . | . . . . . . Self-Inflicted Damage . | . . . . . . Shots . | . . . . . . Rammed . | . . . . . . Targets Rammed . | . . . . . . Kicked . | . . . . . . Crushed . | . . . . . . Highest Temperature 297 | . 43 23 . . 297 Average Temperature 36 | . 17 12 . . 41 Received Heat Transfer 1347 | . 42 . . . 1305 Effects 1 | . . . . . 1 Energy Bleed 1 | . . . . . 1 Siege Activations . | . . . . . . Robots Corrupted . | . . . . . . Combat Hostiles . | . . . . . . Parts Fried . | . . . . . . Impact Corruptions . | . . . . . . Robots Melted . | . . . . . . Combat Hostiles . | . . . . . . Parts Melted . | . . . . . . Heat Transferred 370 | . . . . . 370 Parts Sabotaged . | . . . . . . Parts Stolen . | . . . . . . Parts Stripped . | . . . . . . Power Chain Reactions . | . . . . . . Missiles Intercepted . | . . . . . . Alert | -11 -10 -10 -10 -9 -8 ------- Run | Jun Mat Min Exi Min Mat Peak Influence 233 | 10 195 30 . . 233 Initial 6 | . 6 . . . . Average 77 | 2 63 23 . . 89 Maximum Alert Level 1 | . . . . . 1 Low Security (%) 97 | 100 100 100 . 100 95 Level 1 2 | . . . . . 4 Level 2 . | . . . . . . Level 3 . | . . . . . . Level 4 . | . . . . . . Level 5 . | . . . . . . High Security . | . . . . . . Max Security . | . . . . . . Squads Dispatched 8 | . . . . . 8 Investigation 1 | . . . . . 1 Extermination . | . . . . . . Reinforcement 4 | . . . . . 4 Assault . | . . . . . . Garrison 3 | . . . . . 3 Intercept . | . . . . . . Searches Triggered . | . . . . . . Construction Impeded . | . . . . . . Haulers Reinforced . | . . . . . . Active Scanning Responses . | . . . . . . Cargo Convoy Interrupts . | . . . . . . Stealth | -11 -10 -10 -10 -9 -8 --------- Run | Jun Mat Min Exi Min Mat Distress Signals 7 | . . . . . 7 Communications Jammed . | . . . . . . Distress Signals . | . . . . . . Times Spotted 74 | . 17 1 . . 56 Peak Tracking Total 6 | . 4 . . . 6 Tactical Retreats 4 | . 1 . . . 3 Traps | -11 -10 -10 -10 -9 -8 ------- Run | Jun Mat Min Exi Min Mat Traps Triggered 3 | . . 1 . . 2 Indirectly . | . . . . . . Trap Hack Attempts . | . . . . . . Triggered . | . . . . . . Disarmed . | . . . . . . Reprogrammed . | . . . . . . Reused . | . . . . . . Traps Extracted . | . . . . . . Installed . | . . . . . . Triggered . | . . . . . . Machines | -11 -10 -10 -10 -9 -8 ---------- Run | Jun Mat Min Exi Min Mat Machines Disabled 1 | . . . . . 1 Max in Single Turn 1 | . . . . . 1 Machines Repaired . | . . . . . . Machines Sabotaged . | . . . . . . Overloaded Fab Kills . | . . . . . . Hacking | -11 -10 -10 -10 -9 -8 --------- Run | Jun Mat Min Exi Min Mat Machines Accessed 11 | . 4 1 1 . 5 Terminals 9 | . 4 . . . 5 Fabricators . | . . . . . . Repair Stations . | . . . . . . Recycling Units . | . . . . . . Scanalyzers . | . . . . . . Garrison Access . | . . . . . . Total Hacks 22 | . 10 1 1 . 10 Successful 7 | . 3 1 1 . 2 Failed 15 | . 7 . . . 8 Catastrophic 3 | . 1 . . . 2 Database Lockouts . | . . . . . . Manual 14 | . 9 . . . 5 Terminals 20 | . 10 . . . 10 Fabricators . | . . . . . . Repair Stations . | . . . . . . Recycling Units . | . . . . . . Scanalyzers . | . . . . . . Garrison Access . | . . . . . . Terminal Hacks 7 | . 3 1 1 . 2 Record 1 | . . . 1 . . Open Door 1 | . . 1 . . . Branch Access Points 1 | . . . . . 1 Unreport Threat 3 | . 2 . . . 1 Hauler Manifests 1 | . 1 . . . . Fabricator Hacks . | . . . . . . Repair Station Hacks . | . . . . . . Recycling Unit Hacks . | . . . . . . Scanalyzer . | . . . . . . Garrison Access Hacks . | . . . . . . Unauthorized Hacks . | . . . . . . Terminals . | . . . . . . Fabricators . | . . . . . . Repair Stations . | . . . . . . Recycling Units . | . . . . . . Scanalyzers . | . . . . . . Garrison Access . | . . . . . . Data Cores Recovered . | . . . . . . Used . | . . . . . . Hacking Detections 8 | . 3 . . . 5 Full Trace Events 1 | . . . . . 1 Feedback Events . | . . . . . . Feedback Blocked . | . . . . . . Robot Schematics Acquired . | . . . . . . Robots Built . | . . . . . . Authchips . | . . . . . . Time . | . . . . . . Total Robot Build Rating . | . . . . . . Part Schematics Acquired . | . . . . . . Parts Built . | . . . . . . Authchips . | . . . . . . Time . | . . . . . . Total Part Build Rating . | . . . . . . Parts Repaired . | . . . . . . Time . | . . . . . . Parts Recycled . | . . . . . . Recycled Matter . | . . . . . . Retrieved Matter . | . . . . . . Retrieved Components . | . . . . . . Parts Scanalyzed . | . . . . . . Part Schematics Acquired . | . . . . . . Parts Damaged . | . . . . . . Bothacking | -11 -10 -10 -10 -9 -8 ------------ Run | Jun Mat Min Exi Min Mat Used RIF Installer . | . . . . . . Robots Hacked . | . . . . . . Non-combat . | . . . . . . Combat . | . . . . . . Robot Hacks Applied . | . . . . . . Relay Couplers Released . | . . . . . . Fabnet Peak Effective % . | . . . . . . Robots Rewired . | . . . . . . Allies Hacked . | . . . . . . Hacks Repelled . | . . . . . . Allies | -11 -10 -10 -10 -9 -8 -------- Run | Jun Mat Min Exi Min Mat Total Allies . | . . . . . . Largest Group . | . . . . . . Highest-Rated Group . | . . . . . . Highest-Rated Ally . | . . . . . . Total Orders . | . . . . . . Ally Attacks . | . . . . . . Total Damage . | . . . . . . Kills . | . . . . . . Allies Corrupted . | . . . . . . Allies Melted . | . . . . . . Intel | -11 -10 -10 -10 -9 -8 ------- Run | Jun Mat Min Exi Min Mat Robot Analysis Total . | . . . . . . Derelict Logs Recovered 1 | . . 1 . . . Drone Launches . | . . . . . . Drone Recoveries . | . . . . . . Exploration | -11 -10 -10 -10 -9 -8 ------------- Run | Jun Mat Min Exi Min Mat Turns Passed 4608 | 81 805 230 742 53 2697 Spaces Moved 2070 | 60 460 161 452 18 919 Core 3 | 3 . . . . . Treads 65 | . 65 . . . . Legs . | . . . . . . Wheels 2002 | 57 395 161 452 18 919 Hover . | . . . . . . Flight . | . . . . . . Fastest Speed 50 | 50 100 130 100 295 80 Average Speed 179 | 97 135 130 160 295 221 Slowest Speed 380 | 100 240 130 295 295 380 Overloaded Moves . | . . . . . . Propulsion Burnouts . | . . . . . . Robots Hopped . | . . . . . . Cave-ins Triggered . | . . . . . . Exploration Rate (%) 42 | 3 72 27 81 7 67 Regions Visited 5 Branch Regions 3 Pre-discovered Areas 2 | . . . 1 1 . Known Exits Taken . | . . . . . . Unknown Exits Taken 5 | 1 1 1 1 1 . Scrap Searched . | . . . . . . Spaces Dug . | . . . . . . Terrain Destroyed 23 | . . . . . 23 Melee . | . . . . . . Projectile . | . . . . . . AOE 23 | . . . . . 23 Terrain Rammed . | . . . . . . Walls Destroyed . | . . . . . . Machines Disabled . | . . . . . . Actions | -11 -10 -10 -10 -9 -8 --------- Run | Jun Mat Min Exi Min Mat Total 2669 | 75 596 179 469 19 1331 Wait 278 | . 79 12 . . 187 Move 2065 | 59 459 160 451 17 919 Hop . | . . . . . . Pick Up 65 | 5 14 1 13 2 30 Fast Attach 22 | 8 2 . 1 . 11 Attach 15 | . 1 1 . . 13 Detach 2 | 1 1 . . . . Swap 19 | . 3 1 1 . 14 Drop 35 | . 10 2 3 . 20 Fire 168 | 2 27 2 . . 137 Melee . | . . . . . . Ram . | . . . . . . Kick . | . . . . . . Crush . | . . . . . . Escape Stasis . | . . . . . . Rewire . | . . . . . . Trap . | . . . . . . Miscellaneous . | . . . . . . Route ------- -11/Junkyard -10/Materials (discovered 5 exits: [*Mat x3] / *Min x2) -10/Mines -10/Exiles -9/Mines -8/Materials (discovered 2 exits: *Fac x2) History --------- Turn | Location | Event 2 | -11/Junkyard | Met Revision 17 34 | -11/Junkyard | Discovered new exit (range 16) 82 | -11/Junkyard | Entered Materials 142 | -10/Materials | Discovered new exit (range 7) 303 | -10/Materials | Build established: Mutant 444 | -10/Materials | Discovered new exit (range 9) 656 | -10/Materials | Discovered new exit (range 13) 690 | -10/Materials | Discovered new exit (range 15) 865 | -10/Materials | Discovered new exit (range 15) 887 | -10/Materials | Entered Mines 892 | -10/Mines | Met a Derelict who couldn't figure out how to use a Trap Extractor 962 | -10/Mines | Deemed a non-threat by the Exiles lab entrance 962 | -10/Mines | Discovered new exit (range 5) 1054 | -10/Mines | Assembled infested the area 1117 | -10/Mines | Entered Exiles 1149 | -10/Exiles | Met 8R-AWN 1172 | -10/Exiles | Met EX-HEX 1216 | -10/Exiles | Met EX-BIN 1255 | -10/Exiles | Learned location of Zion (-7) 1257 | -10/Exiles | Met EX-DEC 1306 | -10/Exiles | Visited The Gauntlet 1824 | -10/Exiles | Discovered new exit (range 14) 1859 | -10/Exiles | Build established: Hauler-Mutant 1859 | -10/Exiles | Entered Mines 1860 | -9/Mines | Learned location of Storage (-9) 1889 | -9/Mines | Discovered new exit (range 6) 1912 | -9/Mines | Entered Materials 1912 | -8/Materials | Evolved 4 slots: Propulsion x1, Utility x3 2391 | -8/Materials | Lost 7 parts (1p2n2u2w) 2859 | -8/Materials | Discovered new exit (range 9) 3309 | -8/Materials | Garrison activated, responded to threat 4310 | -8/Materials | Discovered new exit (range 16) 4353 | -8/Materials | Identified exit to Factory 4497 | -8/Materials | Core integrity fell below 50% 4606 | -8/Materials | Core integrity fell below 20% 4609 | -8/Materials | Destroyed by H-61 Shepherd with Heavy Assault Cannon Last Messages --------------- 04596_ Hacking Suite crushed and broken. 04596_ Visual Processing Unit crushed and broken. 04596_ Flight Unit crushed and broken. 04596_ Imp. Terrain Scanner crushed and broken. 04596_ Lgt. Assault Rifle crushed and broken. 04596_ Com. Matter Pod crushed and broken. 04596_ Maul crushed and broken. 04598_ Com. Wheel destroyed. 04598_ Knocked back. 04599_ System corrupted: FCS attempts to trigger Hpw. Shotgun. 04599_ System corrupted: Hpw. Shotgun misfires. 04600_ Acquired Lgt. Cannon. 04600_ H-61 Shepherd calls for reinforcements. 04600_ ALERT: Hostile activity reported, dispatching reinforcements to area. 04600_ Penetrated by Slug. 04600_ Lgt. Treads destroyed. 04600_ Wheel destroyed. 04600_ Knocked back. 04605_ Hpw. Shotgun destroyed. 04605_ Imp. Heat Sink destroyed. Map ----- +----------------------------------------------------+ | | | | | | | | | | | | | | | | | | | | | | | | | | | | | | | ???????????????###########???????????????????????? | | ???????????????# T #???????????????????????? | | ???????????????# #???????????????????????? | | ???????????????# #???????????????????????? | | ????????########! #???????????????????????? | | ????????# +!""" """ #???????????????????????? | | ????????# ######!"""[""" #???????????????????????? | | ????????# #????#["""[""" #???????????????????????? | | ???######+##???#%!=*%[% #???????????????????????? | | ???# #########!######??????????????????????? | | ???# """ ] + H% ===[%!@#############??????????? | | ???# """ ###% g=/!!!!*[!!! #??????????? | | ???# """ #?# ### ############### < #??????????? | | ???# #?# #?# #?????????????# !#??????????? | | ???# """ #?# #?# #?????????????# ##?????????? | | ???# """ #?# #?#+#?????????????# T#?????????? | | ???# """ #?# #?????????????????# ##?????????? | | ???# #?# #????????????????## ##?????????? | | ????? #?# #????????????????# #?????????? | | ????? #?# #????????????????# #?????????? | | ????#+######? ????????????????+ #?????????? | | ????????????? ????????????????# * #?????????? | | ????????????? ????????????????# * #?????????? | | ????????????? ????????????????## #########??? | | ????????????#####?????????????????# # #??? | | ??????????????????????????????????# # "T" = #??? | | ???????????????????????????######## + #??? | | ???????????????????????????# # #??? | | ???????????????????????????# # ] ! #??? | | ???????????????????????????# = =#########??? | | ???????????????????????????# #####+####????????? | | ???????????????????????????# ?# = #????????? | | ???????????????????????????# ??# =!= #????????? | | ???????????????????????????????#= #????????? | | ???????????????????????????????# #????????? | +----------------------------------------------------+ Best States ------------- Heat Dissipation 45 Energy Generation 14 Energy Capacity 265 Matter Stores 300 Matter Capacity 300 Sight Range 16 Terrain Scan Density 10 Armor Coverage 600 Evasion (%) 44 Recoil Reduction 2 Item Schematics ----------------- None Robot Schematics ------------------ None Fabricated ------------ Nothing Alien Tech Used ----------------- None Achievements -------------- None Challenges ------------ None Game ------ Seed ForceChromaticVibroblade Manual? 0 Play Time 00:46:12 Cumulative 45.0 hours Start 2024.02.24 @ 00:44:36 End 2024.02.24 @ 01:13:12 Sessions 1 Manual Loads 0 Difficulty Rogue Special Mode None Game No. 31 Rogue 31 Adventurer 0 Explorer 0 Win Type - Total 2 Types 1/0/1/0/0/0/0/0/0 Lore% 42 Gallery% 30 Achievement% 34 Wizard Run 0 Options --------- ASCII 0 Keyboard 0 Movement Mouse Keybinds 0 Fullscreen 2 Font 18/SmallcapsGlow Map View 112x50 Tactical HUD 1 Map Filters NONE Filters NONE Steam 1 RUN: 466b33cd-e2e0-4af9-bac5-69c589e11721